[Event "Hungary Olimpic Hopes 2022"]
[Site "Tapolca"]
[Date "2022.06.25"]
[Round "6.8"]
[White "Karacsonyi, Luca"]
[Black "Beznicza, Mira"]
[Result "1-0"]
[ECO "C05"]
[WhiteElo "1834"]
[BlackElo "1635"]
[Annotator "NA RC"]
[PlyCount "69"]
[EventDate "2022.06.23"]
[EventType "swiss"]
[EventCountry "HUN"]
[SourceTitle "playchess.com"]
[Source "ChessBase"]
[SourceQuality "1"]
[TimeControl "5400+30"]

1. e4 {[%emt 0:01:30]} e6 {[%emt 0:00:19]} 2. d4 {[%emt 0:00:21]} d5 {[%emt 0:00:10]} 3. Nd2 {[%emt 0:00:09]} Nf6 {[%emt 0:00:44]} 4. e5 {[%emt 0:00:13]} Nfd7 {[%emt 0:00:26]} 5. Bd3 {[%emt 0:00:08]} c5 {[%emt 0:00:53]} 6. c3 {[%emt 0:00:13]} Nc6 {[%emt 0:00:35]} 7. Ne2 {[%emt 0:00:18]} Qb6 {[%emt 0:01:04]} 8. Nf3 {[%emt 0:00:57]} Be7 {[%emt 0:02:39]} 9. O-O {[%emt 0:03:12]} cxd4 {[%emt 0:00:37]} 10. cxd4 {[%emt 0:00:16]} f6 {[%emt 0:01:30]} 11. exf6 {[%emt 0:01:43]} Nxf6 {[%emt 0:00:48]} 12. Re1 {[%emt 0:04:07]} O-O {[%emt 0:04:34]} 13. a3 {[%emt 0:06:04]} e5 {[%emt 0:07:27]} 14. dxe5 {[%emt 0:12:34]} Ng4 15. Be3 {[%emt 0:20:00]} Nxe3 {[%emt 0:09:18]} 16. fxe3 {[%emt 0:00:18]} Qxe3+ {[%emt 0:00:23]} 17. Kh1 {[%emt 0:00:35]} Nxe5 {[%emt 0:11:50]} 18. Nc1 {[%emt 0:05:54]} Qf4 {[%emt 0:11:19]} 19. Nxe5 {[%emt 0:03:45]} Bd6 20. Nf3 {[%emt 0:08:34]} Bg4 {[%emt 0:05:12]} 21. Qd2 {[%emt 0:05:48]} Qxf3 {[%emt 0:13:57]} 22. gxf3 {[%emt 0:04:45]} Bxf3+ {[%emt 0:00:09]} 23. Qg2 {[%emt 0:00:46]} Bxg2+ {[%emt 0:02:00]} 24. Kxg2 {[%emt 0:00:10]} Rf6 {[%emt 0:00:11]} 25. Ne2 {[%emt 0:04:00]} g5 {[%emt 0:01:03]} 26. Nc3 {[%emt 0:00:50]} Rh6 {[%emt 0:00:33]} 27. h3 {[%emt 0:02:11]} g4 {[%emt 0:00:24]} 28. Rh1 {[%emt 0:02:37]} g3 {[%emt 0:00:24]} 29. Nxd5 {[%emt 0:00:55]} Rd8 {[%emt 0:00:46]} 30. Bc4 {[%emt 0:01:45]} Kg7 {[%emt 0:00:34]} 31. Rae1 {[%emt 0:01:37]} Rc8 {[%emt 0:00:20]} 32. Bb3 {[%emt 0:01:05]} Rf8 {[%emt 0:00:30]} 33. Rhf1 {[%emt 0:00:31]} Rxf1 {[%emt 0:01:01]} 34. Rxf1 {[%emt 0:00:17]} Re6 {[%emt 0:00:13]} 35. Nc3 {[%emt 0:01:33]} 1-0

[Event "Hungary Olimpic Hopes 2022"]
[Site "Tapolca"]
[Date "2022.06.25"]
[Round "6.9"]
[White "Karacsonyi, Bank"]
[Black "Bod, Marton"]
[Result "1-0"]
[ECO "B81"]
[WhiteElo "1812"]
[BlackElo "1738"]
[Annotator "NA RC"]
[PlyCount "71"]
[EventDate "2022.06.23"]
[EventType "swiss"]
[EventCountry "HUN"]
[SourceTitle "playchess.com"]
[Source "ChessBase"]
[SourceQuality "1"]
[TimeControl "5400+30"]

1. e4 {[%emt 0:00:02]} c5 {[%emt 0:00:08]} 2. Nf3 {[%emt 0:00:06]} e6 {[%emt 0:00:19]} 3. d4 {[%emt 0:00:04]} cxd4 {[%emt 0:00:07]} 4. Nxd4 {[%emt 0:00:05]} Nf6 {[%emt 0:00:09]} 5. Nc3 {[%emt 0:00:05]} d6 {[%emt 0:00:14]} 6. g4 {[%emt 0:00:04]} h6 {[%emt 0:00:15]} 7. Bg2 {[%emt 0:01:29]} a6 {[%emt 0:03:24]} 8. h3 {[%emt 0:00:28]} Qc7 {[%emt 0:00:54]} 9. Qe2 {[%emt 0:00:23]} Be7 {[%emt 0:01:14]} 10. f4 {[%emt 0:00:41]} Nbd7 {[%emt 0:01:47]} 11. Be3 {[%emt 0:05:38]} Rb8 {[%emt 0:09:24]} 12. a4 {[%emt 0:02:07]} b6 {[%emt 0:01:13]} 13. h4 {[%emt 0:01:50]} Bb7 {[%emt 0:00:25]} 14. O-O-O {[%emt 0:01:04]} Nc5 {[%emt 0:05:36]} 15. Bd2 d5 {[%emt 0:02:25]} 16. exd5 {[%emt 0:07:40]} Bxd5 {[%emt 0:00:26]} 17. Bxd5 {[%emt 0:01:18]} exd5 {[%emt 0:01:57]} 18. g5 {[%emt 0:10:16]} Nfe4 {[%emt 0:00:22]} 19. Nxd5 {[%emt 0:00:24]} Qd7 {[%emt 0:02:56]} 20. Nxe7 {[%emt 0:11:11]} Qxd4 {[%emt 0:02:50]} 21. Nf5 {[%emt 0:00:35]} Qxa4 {[%emt 0:01:02]} 22. Kb1 {[%emt 0:02:43]} Kf8 {[%emt 0:00:30]} 23. gxh6 {[%emt 0:02:05]} g6 {[%emt 0:02:33]} 24. Nd6 Nxd2+ {[%emt 0:00:29]} 25. Qxd2 {[%emt 0:01:54]} Rxh6 {[%emt 0:03:54]} 26. Qd5 {[%emt 0:05:54]} Ne6 {[%emt 0:03:39]} 27. Nf5 Qxf4 {[%emt 0:00:09]} 28. Nxh6 {[%emt 0:01:09]} Rd8 29. Qb7 {[%emt 0:01:12]} Rxd1+ {[%emt 0:00:55]} 30. Rxd1 {[%emt 0:00:21]} Qxh6 {[%emt 0:01:52]} 31. Rf1 {[%emt 0:00:28]} Nd8 {[%emt 0:00:12]} 32. Qxb6 {[%emt 0:00:22]} Qxh4 {[%emt 0:00:50]} 33. Qxg6 {[%emt 0:00:07]} Qc4 {[%emt 0:00:16]} 34. Qd6+ {[%emt 0:00:16]} Ke8 {[%emt 0:00:41]} 35. Rh1 f5 36. Re1+ {[%emt 0:00:42]} 1-0

[Event "Hungary Olimpic Hopes 2022"]
[Site "Tapolca"]
[Date "2022.06.25"]
[Round "6.10"]
[White "Juhasz, Edmond"]
[Black "Lehocz, Jozsef Jr."]
[Result "0-1"]
[ECO "B51"]
[WhiteElo "1479"]
[BlackElo "1963"]
[Annotator "NA RC"]
[PlyCount "128"]
[EventDate "2022.06.23"]
[EventType "swiss"]
[EventCountry "HUN"]
[SourceTitle "playchess.com"]
[Source "ChessBase"]
[SourceQuality "1"]
[TimeControl "5400+30"]

1. e4 {[%emt 0:00:04]} c5 {[%emt 0:00:03]} 2. Nf3 {[%emt 0:00:31]} d6 {[%emt 0:00:07]} 3. Bb5+ {[%emt 0:01:00]} Nd7 {[%emt 0:00:13]} 4. Nc3 {[%emt 0:01:40]} a6 {[%emt 0:00:36]} 5. Bxd7+ {[%emt 0:00:54]} Bxd7 {[%emt 0:00:02]} 6. h3 {[%emt 0:01:44]} Nf6 {[%emt 0:00:34]} 7. d3 {[%emt 0:00:53]} g6 {[%emt 0:00:14]} 8. Be3 {[%emt 0:01:05]} Qc8 {[%emt 0:03:54]} 9. Qd2 {[%emt 0:03:26]} Bg7 {[%emt 0:00:50]} 10. Bh6 {[%emt 0:04:27]} O-O {[%emt 0:00:26]} 11. Bxg7 {[%emt 0:00:32]} Kxg7 {[%emt 0:00:10]} 12. O-O {[%emt 0:00:43]} Bc6 {[%emt 0:02:19]} 13. Rfe1 {[%emt 0:02:18]} Qc7 {[%emt 0:11:32]} 14. Rad1 {[%emt 0:05:37]} b5 {[%emt 0:03:36]} 15. Ne2 $11 {[%emt 0:06:28]} a5 {[%emt 0:02:04]} 16. b3 {[%emt 0:03:53]} b4 {[%emt 0:04:13]} 17. c4 {[%emt 0:02:58]} a4 {[%emt 0:00:36]} 18. Ra1 {[%emt 0:01:36]} Ra6 {[%emt 0:02:13]} 19. Rab1 {[%emt 0:02:39]} axb3 {[%emt 0:00:32]} 20. axb3 {[%emt 0:00:16]} Rfa8 {[%emt 0:00:10]} 21. Rb2 {[%emt 0:00:24]} Qa7 {[%emt 0:02:18]} 22. Reb1 {[%emt 0:01:17]} Nd7 {[%emt 0:06:20]} 23. Ne1 {[%emt 0:05:30]} e6 {[%emt 0:02:18]} 24. f3 {[%emt 0:01:37]} Ne5 {[%emt 0:06:34]} 25. f4 {[%emt 0:02:00]} Nd7 {[%emt 0:03:42]} 26. Nf3 {[%emt 0:05:44]} Ra3 {[%emt 0:02:48]} 27. Qc2 {[%emt 0:04:32]} d5 {[%emt 0:01:08]} 28. Nd2 {[%emt 0:03:37]} Nf6 {[%emt 0:00:53]} 29. Ng3 {[%emt 0:00:57]} Ra5 {[%emt 0:04:06]} 30. Re1 {[%emt 0:04:01]} h5 {[%emt 0:02:40]} 31. Nh1 {[%emt 0:07:37]} Ra2 {[%emt 0:01:32]} 32. Nf2 {[%emt 0:02:43]} Rxb2 {[%emt 0:00:43]} 33. Qxb2 {[%emt 0:00:12]} Qa2 {[%emt 0:00:16]} 34. Rb1 {[%emt 0:02:34]} h4 {[%emt 0:00:48]} 35. Ng4 {[%emt 0:02:35]} Qxb2 {[%emt 0:00:13]} 36. Rxb2 {[%emt 0:00:06]} Ra1+ {[%emt 0:01:03]} 37. Kf2 {[%emt 0:01:50]} Nh5 {[%emt 0:01:56]} 38. Kf3 {[%emt 0:09:08]} dxe4+ {[%emt 0:01:09]} 39. dxe4 {[%emt 0:01:00]} f6 {[%emt 0:00:57]} 40. Ke3 {[%emt 0:03:04]} Ng3 {[%emt 0:01:44]} 41. Kd3 {[%emt 0:06:52]} Kf7 {[%emt 0:04:50]} 42. Nh6+ {[%emt 0:00:29]} Kf8 {[%emt 0:00:31]} 43. Ng4 {[%emt 0:00:23]} Ke7 {[%emt 0:00:24]} 44. Ne3 {[%emt 0:00:44]} Nh5 {[%emt 0:00:55]} 45. f5 {[%emt 0:00:40]} gxf5 {[%emt 0:01:37]} 46. exf5 {[%emt 0:00:18]} Nf4+ {[%emt 0:00:15]} 47. Kc2 {[%emt 0:00:21]} Nxg2 {[%emt 0:00:15]} 48. Nxg2 {[%emt 0:00:43]} Bxg2 {[%emt 0:00:04]} 49. fxe6 {[%emt 0:00:31]} Kxe6 {[%emt 0:00:11]} 50. Kd3 {[%emt 0:00:35]} Ke5 {[%emt 0:00:46]} 51. Ke3 {[%emt 0:00:20]} f5 {[%emt 0:03:21]} 52. Kf2 {[%emt 0:00:29]} Be4 {[%emt 0:01:52]} 53. Nf1 {[%emt 0:00:50]} Kd4 {[%emt 0:00:36]} 54. Rd2+ {[%emt 0:00:30]} Kc3 {[%emt 0:00:19]} 55. Rd6 {[%emt 0:00:24]} Kxb3 {[%emt 0:00:51]} 56. Nd2+ {[%emt 0:00:31]} Kc3 {[%emt 0:00:09]} 57. Ke2 {[%emt 0:00:09]} b3 {[%emt 0:00:27]} 58. Rb6 {[%emt 0:00:55]} b2 {[%emt 0:00:24]} 59. Rb5 {[%emt 0:00:29]} b1=Q {[%emt 0:00:33]} 60. Nxb1+ {[%emt 0:00:04]} Rxb1 {[%emt 0:00:10]} 61. Rxc5 {[%emt 0:00:05]} Kd4 {[%emt 0:00:08]} 62. Rc8 {[%emt 0:00:51]} Rb2+ {[%emt 0:00:13]} 63. Kd1 {[%emt 0:00:23]} Ke3 {[%emt 0:00:10]} 64. Kc1 {[%emt 0:00:10]} Rb1# {[%emt 0:00:04]} 0-1

[Event "Hungary Olimpic Hopes 2022"]
[Site "Tapolca"]
[Date "2022.06.25"]
[Round "6.11"]
[White "Szabo, Akos"]
[Black "Kerekes, Laszlo Fulop"]
[Result "1-0"]
[ECO "B53"]
[WhiteElo "1662"]
[BlackElo "1455"]
[Annotator "NA RC"]
[PlyCount "127"]
[EventDate "2022.06.23"]
[EventType "swiss"]
[EventCountry "HUN"]
[SourceTitle "playchess.com"]
[Source "ChessBase"]
[SourceQuality "1"]
[TimeControl "5400+30"]

1. e4 {[%emt 0:00:01]} c5 {[%emt 0:00:41]} 2. Nf3 {[%emt 0:00:50]} d6 {[%emt 0:00:23]} 3. d4 {[%emt 0:00:12]} cxd4 {[%emt 0:00:51]} 4. Qxd4 {[%emt 0:00:49]} Bd7 {[%emt 0:00:34]} 5. Nc3 {[%emt 0:01:35]} Nf6 {[%emt 0:01:21]} 6. Bg5 Nc6 {[%emt 0:02:06]} 7. Qd2 {[%emt 0:03:10]} g6 {[%emt 0:01:36]} 8. Bxf6 {[%emt 0:00:44]} exf6 {[%emt 0:00:36]} 9. O-O-O {[%emt 0:01:05]} Bg4 {[%emt 0:03:59]} 10. Be2 {[%emt 0:02:20]} Bxf3 {[%emt 0:00:58]} 11. gxf3 {[%emt 0:00:54]} Qa5 {[%emt 0:03:29]} 12. Kb1 {[%emt 0:06:11]} O-O-O {[%emt 0:01:34]} 13. Qd5 {[%emt 0:00:39]} Qxd5 {[%emt 0:01:32]} 14. Rxd5 {[%emt 0:01:38]} a6 {[%emt 0:00:59]} 15. Rhd1 {[%emt 0:01:11]} Kc7 16. R5d2 {[%emt 0:00:17]} Bg7 {[%emt 0:02:54]} 17. Nd5+ {[%emt 0:02:00]} Kb8 {[%emt 0:00:53]} 18. Rd3 {[%emt 0:00:44]} Rhe8 {[%emt 0:02:06]} 19. Rb3 {[%emt 0:01:14]} Ka7 {[%emt 0:01:20]} 20. Rb6 {[%emt 0:00:54]} Ne7 21. Rb3 Nxd5 {[%emt 0:01:50]} 22. Rxd5 {[%emt 0:00:40]} f5 {[%emt 0:02:14]} 23. Bd3 {[%emt 0:04:44]} f4 {[%emt 0:01:21]} 24. Bf1 {[%emt 0:01:40]} Re5 25. Rbd3 {[%emt 0:00:04]} Rxd5 {[%emt 0:01:19]} 26. Rxd5 {[%emt 0:00:35]} Be5 {[%emt 0:01:33]} 27. Bh3 {[%emt 0:01:53]} h5 28. b3 {[%emt 0:00:18]} Re8 {[%emt 0:01:09]} 29. c4 {[%emt 0:00:17]} b6 {[%emt 0:01:30]} 30. Kc2 {[%emt 0:00:14]} Re7 {[%emt 0:01:49]} 31. b4 {[%emt 0:00:13]} Kb7 {[%emt 0:00:52]} 32. Kb3 {[%emt 0:00:22]} f6 {[%emt 0:00:58]} 33. a4 {[%emt 0:06:48]} Rc7 {[%emt 0:01:07]} 34. Be6 {[%emt 0:02:52]} g5 {[%emt 0:02:56]} 35. a5 {[%emt 0:02:07]} Ka7 {[%emt 0:00:30]} 36. h3 {[%emt 0:00:45]} h4 37. axb6+ {[%emt 0:00:09]} Kxb6 {[%emt 0:00:44]} 38. Ra5 {[%emt 0:00:28]} Kb7 {[%emt 0:00:52]} 39. Bd5+ {[%emt 0:00:33]} Kb6 {[%emt 0:00:38]} 40. Be6 {[%emt 0:00:58]} Kb7 {[%emt 0:01:42]} 41. Ka4 Bc3 {[%emt 0:00:16]} 42. Kb3 {[%emt 0:00:55]} Be5 {[%emt 0:00:38]} 43. b5 {[%emt 0:06:06]} axb5 {[%emt 0:03:17]} 44. cxb5 {[%emt 0:00:43]} Rc3+ {[%emt 0:02:52]} 45. Ka4 {[%emt 0:00:32]} Rc1 {[%emt 0:01:45]} 46. Bd5+ {[%emt 0:00:41]} Kc7 {[%emt 0:02:54]} 47. Ra7+ {[%emt 0:08:35]} Kc8 48. Rh7 {[%emt 0:00:08]} Ra1+ {[%emt 0:01:09]} 49. Kb4 {[%emt 0:00:15]} Rb1+ {[%emt 0:01:16]} 50. Ka5 {[%emt 0:01:31]} Bc3+ {[%emt 0:00:34]} 51. Kb6 {[%emt 0:00:55]} Bd4+ 52. Kc6 {[%emt 0:00:10]} Rc1+ {[%emt 0:01:33]} 53. Kxd6 {[%emt 0:00:09]} Be5+ {[%emt 0:03:07]} 54. Ke6 {[%emt 0:01:00]} Bc7 {[%emt 0:00:18]} 55. Kxf6 {[%emt 0:01:05]} Bd8+ 56. Ke6 {[%emt 0:00:09]} Rb1 {[%emt 0:01:46]} 57. Bc6 {[%emt 0:01:34]} Rb2 58. Rh8 {[%emt 0:00:17]} Rb3 {[%emt 0:01:34]} 59. e5 {[%emt 0:00:16]} Rb1 {[%emt 0:01:22]} 60. Kf7 {[%emt 0:01:00]} Kc7 {[%emt 0:00:27]} 61. e6 {[%emt 0:00:46]} Re1 {[%emt 0:00:34]} 62. b6+ {[%emt 0:00:07]} Kxb6 63. Rxd8 {[%emt 0:00:06]} Kxc6 {[%emt 0:00:43]} 64. e7 1-0

[Event "Hungary Olimpic Hopes 2022"]
[Site "Tapolca"]
[Date "2022.06.25"]
[Round "6.12"]
[White "Feher, Botond"]
[Black "Sass, Oscar"]
[Result "1-0"]
[ECO "B21"]
[WhiteElo "1792"]
[BlackElo "1439"]
[Annotator "NA RC"]
[PlyCount "49"]
[EventDate "2022.06.23"]
[EventType "swiss"]
[EventCountry "HUN"]
[SourceTitle "playchess.com"]
[Source "ChessBase"]
[SourceQuality "1"]
[TimeControl "5400+30"]

1. e4 {[%emt 0:00:01]} c5 {[%emt 0:00:07]} 2. d4 {[%emt 0:00:03]} cxd4 {[%emt 0:00:04]} 3. c3 {[%emt 0:00:04]} d5 {[%emt 0:00:04]} 4. exd5 {[%emt 0:00:16]} Qxd5 {[%emt 0:00:05]} 5. cxd4 {[%emt 0:00:04]} Nc6 {[%emt 0:00:03]} 6. Nf3 {[%emt 0:00:05]} e5 {[%emt 0:00:04]} 7. Nc3 {[%emt 0:00:45]} Bb4 {[%emt 0:00:04]} 8. Bd2 {[%emt 0:03:49]} Bxc3 {[%emt 0:00:05]} 9. Bxc3 {[%emt 0:00:19]} e4 {[%emt 0:00:05]} 10. Ne5 {[%emt 0:00:40]} Nxe5 {[%emt 0:00:18]} 11. dxe5 {[%emt 0:00:07]} Ne7 {[%emt 0:00:07]} 12. Be2 {[%emt 0:02:08]} O-O {[%emt 0:01:41]} 13. O-O {[%emt 0:03:13]} Be6 {[%emt 0:02:56]} 14. Qa4 {[%emt 0:03:16]} Bd7 {[%emt 0:08:44]} 15. Qb4 {[%emt 0:02:34]} Nc6 {[%emt 0:00:29]} 16. Qxb7 {[%emt 0:02:33]} Rfb8 17. Qc7 Rc8 {[%emt 0:07:05]} 18. Qd6 {[%emt 0:00:47]} Qxd6 {[%emt 0:00:09]} 19. exd6 {[%emt 0:02:23]} Rab8 20. Rad1 Be6 {[%emt 0:02:02]} 21. a3 {[%emt 0:01:17]} Rd8 {[%emt 0:04:41]} 22. Rfe1 {[%emt 0:01:28]} f5 23. f3 e3 {[%emt 0:01:15]} 24. f4 {[%emt 0:00:45]} Rd7 {[%emt 0:00:36]} 25. Bf3 1-0

[Event "Hungary Olimpic Hopes 2022"]
[Site "Tapolca"]
[Date "2022.06.25"]
[Round "6.13"]
[White "Biro, Beata"]
[Black "Hangyal, Dora"]
[Result "1-0"]
[ECO "B24"]
[WhiteElo "1480"]
[BlackElo "1163"]
[Annotator "NA RC"]
[PlyCount "66"]
[EventDate "2022.06.23"]
[EventType "swiss"]
[EventCountry "HUN"]
[SourceTitle "playchess.com"]
[Source "ChessBase"]
[SourceQuality "1"]
[TimeControl "5400+30"]

1. e4 {[%emt 0:00:05]} c5 {[%emt 0:00:06]} 2. Nc3 {[%emt 0:00:11]} Nc6 {[%emt 0:00:11]} 3. Bb5 {[%emt 0:00:20]} Nd4 {[%emt 0:00:32]} 4. Bc4 {[%emt 0:00:25]} g6 {[%emt 0:00:23]} 5. Nge2 {[%emt 0:00:33]} Bg7 {[%emt 0:00:52]} 6. d3 {[%emt 0:00:49]} a6 {[%emt 0:00:11]} 7. a4 {[%emt 0:00:29]} Nf6 {[%emt 0:00:22]} 8. O-O {[%emt 0:00:44]} O-O {[%emt 0:00:05]} 9. f4 {[%emt 0:00:32]} e6 {[%emt 0:01:14]} 10. Kh1 {[%emt 0:01:27]} d5 {[%emt 0:00:40]} 11. Ba2 {[%emt 0:01:21]} Nxe2 {[%emt 0:05:47]} 12. Qxe2 {[%emt 0:00:50]} d4 {[%emt 0:00:07]} 13. Nd1 {[%emt 0:01:03]} b5 {[%emt 0:01:12]} 14. Nf2 {[%emt 0:04:38]} h6 {[%emt 0:03:42]} 15. Ng4 {[%emt 0:01:03]} Nxg4 {[%emt 0:00:18]} 16. Qxg4 {[%emt 0:00:15]} e5 {[%emt 0:00:07]} 17. f5 {[%emt 0:01:16]} Qf6 {[%emt 0:01:27]} 18. Qxg6 {[%emt 0:02:17]} Qxg6 {[%emt 0:01:54]} 19. fxg6 {[%emt 0:00:06]} Be6 {[%emt 0:00:43]} 20. gxf7+ {[%emt 0:00:21]} Bxf7 {[%emt 0:00:18]} 21. Bxf7+ {[%emt 0:00:09]} Rxf7 {[%emt 0:00:11]} 22. Rxf7 {[%emt 0:00:04]} Kxf7 {[%emt 0:00:08]} 23. axb5 {[%emt 0:00:14]} Bf8 {[%emt 0:02:48]} 24. Rxa6 {[%emt 0:00:34]} Rb8 {[%emt 0:00:38]} 25. b6 {[%emt 0:00:47]} h5 {[%emt 0:00:21]} 26. h3 {[%emt 0:00:58]} Be7 {[%emt 0:01:09]} 27. Bd2 {[%emt 0:01:45]} Ke6 {[%emt 0:01:34]} 28. c3 {[%emt 0:01:04]} Kd7 {[%emt 0:01:39]} 29. cxd4 {[%emt 0:01:16]} cxd4 {[%emt 0:00:12]} 30. Ra7+ {[%emt 0:00:37]} Kd8 {[%emt 0:01:28]} 31. Ba5 {[%emt 0:01:24]} Bg5 {[%emt 0:05:51]} 32. Rg7 {[%emt 0:01:13]} Be7 {[%emt 0:00:40]} 33. Rg8+ Bf8 1-0

[Event "Hungary Olimpic Hopes 2022"]
[Site "Tapolca"]
[Date "2022.06.25"]
[Round "6.14"]
[White "Molnar, Dalma Reka"]
[Black "Kiss, Inez"]
[Result "1/2-1/2"]
[ECO "B12"]
[WhiteElo "1554"]
[BlackElo "1469"]
[Annotator "NA RC"]
[PlyCount "70"]
[EventDate "2022.06.23"]
[EventType "swiss"]
[EventCountry "HUN"]
[SourceTitle "playchess.com"]
[Source "ChessBase"]
[SourceQuality "1"]
[TimeControl "5400+30"]

1. e4 {[%emt 0:00:07]} c6 {[%emt 0:00:02]} 2. d4 {[%emt 0:00:11]} d5 {[%emt 0:00:05]} 3. e5 {[%emt 0:00:44]} Bf5 {[%emt 0:00:04]} 4. Nc3 {[%emt 0:00:30]} e6 {[%emt 0:00:20]} 5. g4 {[%emt 0:00:20]} Bg6 {[%emt 0:00:08]} 6. Nge2 {[%emt 0:00:41]} h6 {[%emt 0:00:37]} 7. h4 {[%emt 0:00:58]} Nd7 {[%emt 0:01:11]} 8. h5 {[%emt 0:01:47]} Bh7 {[%emt 0:00:12]} 9. Be3 {[%emt 0:02:52]} c5 {[%emt 0:01:47]} 10. f4 {[%emt 0:02:42]} cxd4 {[%emt 0:01:29]} 11. Nxd4 {[%emt 0:00:18]} Bc5 {[%emt 0:03:25]} 12. Bb5 {[%emt 0:07:29]} a6 {[%emt 0:04:26]} 13. Nxe6 {[%emt 0:05:34]} fxe6 {[%emt 0:03:12]} 14. Bxd7+ {[%emt 0:00:40]} Qxd7 {[%emt 0:00:25]} 15. Bxc5 {[%emt 0:00:12]} Ne7 {[%emt 0:03:49]} 16. Qd2 {[%emt 0:07:04]} Rc8 {[%emt 0:04:02]} 17. Bd6 {[%emt 0:18:43]} Rc6 {[%emt 0:01:35]} 18. Bxe7 {[%emt 0:04:06]} Kxe7 {[%emt 0:04:53]} 19. Rc1 {[%emt 0:01:49]} Rhc8 {[%emt 0:02:29]} 20. Ne2 {[%emt 0:19:06]} Rxc2 {[%emt 0:10:52]} 21. Rxc2 {[%emt 0:01:34]} Rxc2 {[%emt 0:00:16]} 22. Qb4+ {[%emt 0:00:13]} Ke8 {[%emt 0:06:33]} 23. a4 {[%emt 0:05:23]} Bd3 {[%emt 0:07:05]} 24. Rh2 {[%emt 0:00:39]} Qc7 {[%emt 0:11:55]} 25. Rg2 {[%emt 0:03:14]} Bxe2 {[%emt 0:07:46]} 26. Rxe2 {[%emt 0:00:13]} Rc4 {[%emt 0:03:20]} 27. Qd2 {[%emt 0:03:28]} Rxa4 {[%emt 0:03:37]} 28. Rg2 {[%emt 0:02:19]} Ra1+ {[%emt 0:00:50]} 29. Kf2 {[%emt 0:01:29]} Qc5+ {[%emt 0:01:52]} 30. Kg3 {[%emt 0:02:06]} Ra4 {[%emt 0:00:56]} 31. f5 {[%emt 0:00:57]} exf5 {[%emt 0:04:25]} 32. gxf5 {[%emt 0:00:17]} Re4 {[%emt 0:01:38]} 33. Re2 {[%emt 0:02:48]} Rxe2 {[%emt 0:01:02]} 34. Qxe2 {[%emt 0:00:03]} Qg1+ {[%emt 0:00:19]} 35. Kf3 {[%emt 0:01:03]} Qh1+ {[%emt 0:00:21]} 1/2-1/2

[Event "Hungary Olimpic Hopes 2022"]
[Site "Tapolca"]
[Date "2022.06.25"]
[Round "6.15"]
[White "Balazs, Szabina Zoe"]
[Black "Balogh, Gerda"]
[Result "1-0"]
[ECO "C55"]
[WhiteElo "1426"]
[BlackElo "1531"]
[Annotator "NA COMBH RC"]
[PlyCount "117"]
[EventDate "2022.06.23"]
[EventType "swiss"]
[EventCountry "HUN"]
[SourceTitle "playchess.com"]
[Source "ChessBase"]
[SourceQuality "1"]
[TimeControl "5400+30"]

1. e4 {[%emt 0:00:03]} e5 {[%emt 0:00:04]} 2. Nf3 {[%emt 0:00:03]} Nc6 {[%emt 0:00:07]} 3. Bc4 {[%emt 0:00:04]} Nf6 {[%emt 0:00:08]} 4. d3 {[%emt 0:00:12]} Be7 {[%emt 0:00:21]} 5. c3 {[%emt 0:00:30]} d6 {[%emt 0:01:23]} 6. h3 {[%emt 0:00:56]} O-O {[%emt 0:00:22]} 7. O-O {[%emt 0:00:29]} Na5 {[%emt 0:00:18]} 8. Bb5 {[%emt 0:00:46]} Bd7 {[%emt 0:01:05]} 9. Ba4 {[%emt 0:00:41]} Bxa4 {[%emt 0:08:53]} 10. Qxa4 {[%emt 0:00:07]} Nc6 {[%emt 0:00:36]} 11. Re1 {[%emt 0:01:09]} d5 {[%emt 0:01:36]} 12. Qb5 {[%emt 0:02:13]} Rb8 {[%emt 0:07:34]} 13. exd5 {[%emt 0:00:31]} a6 {[%emt 0:00:22]} 14. Qc4 {[%emt 0:00:56]} Na5 {[%emt 0:02:49]} 15. Qa4 {[%emt 0:00:41]} Qxd5 {[%emt 0:00:21]} 16. Rxe5 {[%emt 0:00:19]} Qxd3 {[%emt 0:02:20]} 17. Rxe7 {[%emt 0:00:20]} Nc6 {[%emt 0:13:36]} 18. Re3 {[%emt 0:01:08]} Qg6 {[%emt 0:04:45]} 19. Ne5 {[%emt 0:04:31]} Qh5 {[%emt 0:05:28]} 20. Nxc6 {[%emt 0:00:34]} bxc6 {[%emt 0:00:34]} 21. Re1 {[%emt 0:00:35]} Rbd8 {[%emt 0:02:27]} 22. Bd2 {[%emt 0:00:32]} Rd6 {[%emt 0:01:09]} 23. Qxa6 {[%emt 0:00:37]} Nd5 {[%emt 0:02:03]} 24. Qe2 {[%emt 0:00:57]} Qh4 {[%emt 0:07:31]} 25. Kh2 {[%emt 0:02:48]} Re6 {[%emt 0:01:01]} 26. Qf1 {[%emt 0:00:20]} Rd6 {[%emt 0:01:11]} 27. c4 {[%emt 0:00:33]} Nf6 {[%emt 0:00:26]} 28. Bb4 {[%emt 0:00:16]} Rd4 {[%emt 0:03:05]} 29. Bxf8 {[%emt 0:00:34]} Kxf8 {[%emt 0:00:10]} 30. Nc3 {[%emt 0:01:02]} Rd2 {[%emt 0:00:26]} 31. Re2 {[%emt 0:00:11]} Rd8 {[%emt 0:07:28]} 32. g3 {[%emt 0:01:26]} Qxc4 33. Re8+ {[%emt 0:00:41]} Rxe8 {[%emt 0:02:19]} 34. Qxc4 {[%emt 0:00:07]} g6 {[%emt 0:00:51]} 35. Qxc6 {[%emt 0:00:20]} Kg7 {[%emt 0:00:15]} 36. a4 {[%emt 0:00:31]} Re6 {[%emt 0:01:09]} 37. Qxe6 {[%emt 0:00:31]} fxe6 {[%emt 0:00:26]} 38. a5 {[%emt 0:00:07]} Nd7 {[%emt 0:00:20]} 39. a6 {[%emt 0:00:11]} Nb6 {[%emt 0:00:19]} 40. Nb5 {[%emt 0:00:20]} Na8 {[%emt 0:00:12]} 41. a7 {[%emt 0:00:05]} Kf7 {[%emt 0:00:17]} 42. Rc1 {[%emt 0:00:08]} Ke7 {[%emt 0:00:32]} 43. Rxc7+ {[%emt 0:00:12]} Nxc7 {[%emt 0:00:32]} 44. Nxc7 {[%emt 0:00:05]} Kd7 {[%emt 0:00:05]} 45. a8=Q {[%emt 0:00:12]} Kxc7 {[%emt 0:00:16]} 46. Qa6 {[%emt 0:00:03]} Kd7 {[%emt 0:00:27]} 47. Kg2 {[%emt 0:00:08]} Ke7 {[%emt 0:00:26]} 48. Kf3 {[%emt 0:00:15]} Kf6 {[%emt 0:00:23]} 49. g4 {[%emt 0:00:16]} g5 {[%emt 0:00:33]} 50. Ke4 {[%emt 0:00:16]} h6 {[%emt 0:00:13]} 51. f3 {[%emt 0:00:14]} Ke7 {[%emt 0:00:10]} 52. Ke5 {[%emt 0:00:05]} Kd7 {[%emt 0:00:33]} 53. Qxe6+ {[%emt 0:00:09]} Kc7 {[%emt 0:00:08]} 54. Kd5 {[%emt 0:00:10]} Kb7 {[%emt 0:00:25]} 55. Qd6 {[%emt 0:00:12]} Ka7 {[%emt 0:00:51]} 56. Qc6 {[%emt 0:00:09]} Kb8 {[%emt 0:00:15]} 57. Qd7 {[%emt 0:00:08]} Ka8 {[%emt 0:00:11]} 58. Kc6 {[%emt 0:00:07]} Kb8 {[%emt 0:00:46] Check Result:?ev?} 59. Qb7# {[%emt 0:00:08]} 1-0